{"text_format":"1","workbook":"xlsx","n_sheets":1,"sheets":["parabool"],"not_rendered":{"charts":1,"images":3,"macros":1,"external_links":0,"defined_names":0,"comments":1,"pivot_tables":0},"unopened":[],"bounds":{"document_bytes":16777216,"sheet_cells":100000,"rows_first":2000,"rows_last":500,"rows_between":2000,"halvings":0,"cell_chars":16384,"cell_head_chars":4096},"cells_cut":0,"cells_raw":0,"read":"whole","date_system":"1900"}

{"sheet":"parabool","index":0,"n_rows":32,"n_cols":35,"rows_kept":32,"cut":false,"hidden":false,"merged":[[9,5,10,5],[13,7,13,8],[0,9,2,11],[9,6,10,6],[11,6,12,6],[11,7,11,8],[12,7,12,8]]}
[null,null,null,null,null,null,null,null,null,"Parabola: y = ax2 + bx + c",null,null,null,null,null,null,null,null,null,null,null,null,null,null,null,null,null,null,null,null,null,null,null,"b spinner",15]
[null,null,null,152,null,null,null,null,null,null,null,null,null,null,null,null,null,null,null,null,null,null,null,null,null,null,null,null,null,null,null,null,null,"a spinner",6]
[null,null,null,null,null,null,null,null,null,null,null,null,null,null,null,null,null,null,null,null,null,null,null,null,null,null,"x",{"$f":"E9","v":3},null,null,null,null,null,"c spinner",60]
[null,null,null,null,null,null,null,null,null,null,null,null,null,null,null,null,null,null,null,null,null,null,null,null,null,null,null,null,null,null,"k",{"$f":"$E$5* E9^2+$E$6*E9-AF5*E9+$E$7","v":-54.800000000000004},null,"x",80]
[null,null,null,"a =",{"$f":"(-100+D2)/10","v":5.2},null,"D  =","b2 - 4ac",null,null,"Axis of symmetry =","-b/(2a)","·","Turning point x = ","-b/(2a)",{"$f":"\"= \" & L7","v":"= 0,337"},null,null,null,null,null,null,null,null,null,null,null,null,null,null,"Helling",{"$f":"2*$E$5*$E$9+$E$6","v":27.700000000000003}]
[null,null,null,"b =",{"$f":"ROUND(-5+AI1/10,1)","v":-3.5},null,"=",{"$f":"\"(\" & E6 & \")^2-4(\" & E5 & \")(\" & E7 & \")\"","v":"(-3,5)^2-4(5,2)(-8)"},null,null,"=",{"$f":"\"-(\" &E6 & \")/2(\" &E5 & \")\"","v":"-(-3,5)/2(5,2)"},null,"Turning point y = ","-D/(4a)",{"$f":"\"= \" &ROUND( -H7/4/E5,3)","v":"= -8,589"},null,null,null,null,null,null,null,null,null,null,"x","y","y'","y'1"]
[null,null,null,"c =",{"$f":"(-100+AI3)/5","v":-8},null,"=",{"$f":"(E6)^2-4*E5*E7","v":178.65},null,null,"=",{"$f":"ROUND(-E6/2/E5,3)","v":0.33700000000000002},null,null,null,null,null,null,null,null,null,null,null,null,null,null,-5,{"$f":"$E$5*AA7^2+$E$6*AA7+$E$7","v":139.5},{"$f":"$AF$5*AA7+$AF$4","v":-193.3}]
[null,null,null,null,null,null,"ÖD  =",{"$f":"IF(ISERROR((E6^2-4*E5*E7)^0.5)=TRUE,\"Non-real roots\",ROUND((E6^2-4*E5*E7)^0.5,4))","v":13.366},null,null,null,null,null,null,null,null,null,null,null,null,null,null,null,null,null,null,-4.5,{"$f":"$E$5*AA8^2+$E$6*AA8+$E$7","v":113.05},-179.45000000000002]
[null,null,null,"x =",{"$f":"ROUND(-5+AI4/10,1)","v":3},null,null,null,null,null,null,null,null,null,null,null,null,null,null,null,null,null,null,null,null,null,-4,89.2,-165.60000000000002]
[null,null,null,null,null,"·","Roots =","-b±ÖD",null,null,null,null,null,null,null,null,null,null,null,null,null,null,null,null,null,null,-3.5,67.95,-151.75000000000003]
[null,null,null,null,null,null,null,"2a",null,null,null,null,null,null,null,null,null,null,null,null,null,null,null,null,null,null,-3,49.300000000000004,-137.9]
[null,null,null,null,null,null," =",{"$f":"IF(H7<0,\"\",(\"-(\" & E6 & \") ± (\" & H8 & \")\"))","v":"-(-3,5) ± (13,366)"},null,null,null,null,null,null,null,null,null,null,null,null,null,null,null,null,null,null,-2.5,33.25,-124.05000000000001]
[null,null,null,null,null,null,null,{"$f":"IF(H7<0,\"\",(2 & \"(\" &E5 & \")\"))","v":"2(5,2)"},null,null,null,null,null,null,null,null,null,null,null,null,null,null,null,null,null,null,-2,19.8,-110.20000000000002]
[null,null,null,null,null,null,"=",{"$f":"IF(ISERROR(ROUND((-E6+H8)/2/E5,3) & \"; \" & ROUND((-E6-H8)/2/E5,3))=TRUE,\"Non-real roots\",ROUND((-E6+H8)/2/E5,3) & \"; \" & ROUND((-E6-H8)/2/E5,3))","v":"1,622; -0,949"},null,null,null,null,null,null,null,null,null,null,null,null,null,null,null,null,null,null,-1.5,8.9500000000000028,-96.350000000000009]
[null,null,null,null,null,null,null,null,null,null,null,null,null,null,null,null,null,null,null,null,null,null,null,null,null,null,-1,0.69999999999999929,-82.5]
[null,null,null,null,null,null,"Gradient =","2ax + b",null,null,null,null,null,null,null,null,null,null,null,null,null,null,null,null,null,null,-0.5,-4.95,-68.650000000000006]
[null,null,null,null,null,null,"=",{"$f":"\"2(\" & E5 & \")(\" & E9 &\")+(\" & E6 & \")\"","v":"2(5,2)(3)+(-3,5)"},null,null,null,null,null,null,null,null,null,null,null,null,null,null,null,null,null,null,0,-8,-54.800000000000004]
[null,null,null,null,null,null,"=",{"$f":"ROUND(2*E5*E9+E6,3)","v":27.7},null,null,null,null,null,null,null,null,null,null,null,null,null,null,null,null,null,null,0.5,-8.4499999999999993,-40.950000000000003]
[null,null,null,null,null,null,null,null,null,null,null,null,null,null,null,null,null,null,null,null,null,null,null,null,null,null,1,-6.3,-27.1,-16.614999999999998]
[null,null,null,null,null,null,null,null,null,null,null,null,null,null,null,null,null,null,null,null,null,null,null,null,null,null,1.5,-1.5499999999999989,-13.25,-9.2650000000000006]
[null,null,null,-5,{"$f":"$H$18*D21-(($E$6-$H$18)^2-4*$E$5*$E$7)/4/$E$5","v":-193.3},null,{"$f":"L7","v":0.33700000000000002},40,null,null,null,null,null,null,null,null,null,null,null,null,null,null,null,null,null,null,2,5.8000000000000007,0.60000000000000142,-1.915]
[null,null,null,5,{"$f":"$H$18*D22-(($E$6-$H$18)^2-4*$E$5*$E$7)/4/$E$5","v":83.7},null,{"$f":"L7","v":0.33700000000000002},-40,null,null,null,null,null,null,null,null,null,null,null,null,null,null,null,null,null,null,2.5,15.75,14.449999999999996,5.4349999999999996]
[null,null,null,null,null,null,null,null,null,null,null,null,null,null,null,null,null,null,null,null,null,null,null,null,null,null,3,28.300000000000004,28.300000000000004,12.785]
[null,null,null,null,null,null,null,null,null,null,null,null,null,null,null,null,null,null,null,null,null,null,null,null,null,null,3.5,43.45,42.150000000000013,20.135000000000002]
[null,null,null,null,null,null,null,null,null,null,null,null,null,null,null,null,null,null,null,null,null,null,null,null,null,null,4,61.2,56.000000000000007,27.484999999999999]
[null,null,null,null,null,null,null,null,null,null,null,null,null,null,null,null,null,null,null,null,null,null,null,null,null,null,4.5,81.55,69.849999999999994,34.835000000000001]
[null,null,null,null,null,null,null,null,null,null,null,null,null,null,null,null,null,null,null,null,null,null,null,null,null,null,5,{"$f":"$E$5*$AA$27^2+$E$6*$AA$27+$E$7","v":104.5},83.699999999999989]
[null,null,null,null,null,null,null,null,null,null,null,null,null,null,null,null,null,null,null,null,null,null,null,null,null,null,null,null,{"$f":"IF($AF$5*AA28+$AF$4>MAX($AB$7:$AB$27),\"\",IF($AF$5*AA28+$AF$4<MIN($AB$7:$AB$27),\"\",$AF$5*AA28+$AF$4))","v":""}]
[null,null,null,null,null,null,null,null,null,null,null,null,null,null,null,null,null,null,null,null,null,null,null,null,null,null,null,null,null,null,null,"x","y"]
[null,null,null,null,null,null,null,null,null,null,null,null,null,null,null,null,null,null,null,null,null,null,null,null,null,null,"x","y","y'",null,"wortel 1",{"$f":"IF(ISERROR((-$E$6+SQRT($E$6^2-4*$E$5*$E$7))/2/$E$5)=TRUE,10,(-$E$6+SQRT($E$6^2-4*$E$5*$E$7))/2/$E$5)","v":1.6217309274968539},0]
[null,null,null,null,null,null,null,null,null,null,null,null,null,null,null,null,null,null,null,null,null,null,null,null,null,null,{"$f":"-$E$6/2/$E$5","v":0.33653846153846151},{"$f":"MIN(AB7:AB27)-5","v":-13.45},{"$f":"$E$5*$AA$31^2+$E$6*$AA$31+$E$7","v":-8.5889423076923084},null,"wortel 2",{"$f":"IF(ISERROR((-$E$6-SQRT($E$6^2-4*$E$5*$E$7))/2/$E$5)=TRUE,10,(-$E$6-SQRT($E$6^2-4*$E$5*$E$7))/2/$E$5)","v":-0.94865400441993064},0]
[null,null,null,null,null,null,null,null,null,null,null,null,null,null,null,null,null,null,null,null,null,null,null,null,null,null,{"$f":"-$E$6/2/$E$5","v":0.33653846153846151},{"$f":"MAX(AB7:AB27)+5","v":144.5}]